[Event "FIDE Chesscom Grand Swiss 2019"]
[Site "Douglas-Isle of Man"]
[Date "2019.10.20"]
[Round "10.10"]
[White "Sarana, Alexey"]
[Black "Vovk, Andriy"]
[Result "1-0"]
[ECO "B62"]
[WhiteElo "2655"]
[BlackElo "2618"]
[Annotator "ChessBase"]
[PlyCount "73"]
[EventDate "2019.10.10"]
[EventType "swiss"]
[EventCountry "GBR"]
[SourceTitle "playchess.com"]
[Source "ChessBase"]
[SourceQuality "1"]
[TimeControl "40/6000+30:20/3000+30:900+30"]

1. e4 {[%emt 0:00:00]} c5 {[%emt 0:01:36]} 2. Nf3 {[%emt 0:00:00]} Nc6 {[%emt 0:00:17]} 3. d4 {[%emt 0:00:00]} cxd4 {[%emt 0:00:06]} 4. Nxd4 {[%emt 0:00:00]} Nf6 {[%emt 0:00:06]} 5. Nc3 {[%emt 0:00:00]} d6 {[%emt 0:00:05]} 6. Bg5 {[%emt 0:00:01]} e6 {[%emt 0:00:39]} 7. Qd3 {[%emt 0:00:07]} a6 {[%emt 0:14:20]} 8. Nxc6 {[%emt 0:00:11]} bxc6 {[%emt 0:00:09]} 9. O-O-O {[%emt 0:00:06]} Be7 {[%emt 0:03:09]} 10. Qg3 {[%emt 0:16:20]} e5 {[%emt 0:11:48]} 11. Bc4 {[%emt 0:06:49]} h6 {[%emt 0:06:53]} 12. Bd2 {[%emt 0:06:13]} g5 {[%emt 0:19:19]} 13. h4 {[%emt 0:05:25]} g4 {[%emt 0:00:41]} 14. f4 {[%emt 0:04:30]} gxf3 {[%emt 0:05:14]} 15. gxf3 {[%emt 0:02:23]} Rg8 {[%emt 0:05:00]} 16. Qf2 {[%emt 0:00:14]} Bf8 {[%emt 0:00:09]} 17. Be3 {[%emt 0:05:31]} Be6 {[%emt 0:01:40]} 18. Qe2 {[%emt 0:03:25]} Qc8 {[%emt 0:06:08]} 19. Bxe6 {[%emt 0:04:06]} Qxe6 {[%emt 0:00:51]} 20. f4 {[%emt 0:00:02]} exf4 {[%emt 0:01:37]} 21. Bxf4 {[%emt 0:00:03]} Nd7 {[%emt 0:10:30]} 22. Rhf1 {[%emt 0:02:34]} a5 {[%emt 0:03:28]} 23. Qd2 {[%emt 0:03:13]} Rg6 {[%emt 0:01:36]} 24. h5 {[%emt 0:03:19]} Rf6 {[%emt 0:00:05]} 25. Rg1 {[%emt 0:00:10]} Ne5 {[%emt 0:01:24]} 26. Rg8 {[%emt 0:02:37]} Nc4 {[%emt 0:00:47]} 27. Qh2 {[%emt 0:00:52]} a4 {[%emt 0:01:31]} 28. Qg3 {[%emt 0:02:27]} a3 {[%emt 0:02:08]} 29. b3 {[%emt 0:00:03]} Ne5 {[%emt 0:00:20]} 30. Ne2 {[%emt 0:01:33]} Nd7 {[%emt 0:06:59]} 31. Nd4 {[%emt 0:01:38]} Qxe4 {[%emt 0:00:07]} 32. Re1 {[%emt 0:00:05]} Rxf4 {[%emt 0:00:06]} 33. Rxe4+ {[%emt 0:00:13]} Rxe4 {[%emt 0:00:05]} 34. Qxd6 {[%emt 0:00:17]} Rc8 {[%emt 0:04:50]} 35. Nf5 {[%emt 0:00:12]} f6 {[%emt 0:00:05]} 36. Rh8 {[%emt 0:00:34]} Rd8 {[%emt 0:03:03]} 37. Rxf8+ {[%emt 0:00:09]} 1-0

[Event "FIDE Chesscom Grand Swiss 2019"]
[Site "Douglas-Isle of Man"]
[Date "2019.10.20"]
[Round "10.11"]
[White "Movsesian, Sergei"]
[Black "Jobava, Baadur"]
[Result "1/2-1/2"]
[ECO "C47"]
[WhiteElo "2654"]
[BlackElo "2617"]
[Annotator "ChessBase"]
[PlyCount "61"]
[EventDate "2019.10.10"]
[EventType "swiss"]
[EventCountry "GBR"]
[SourceTitle "playchess.com"]
[Source "ChessBase"]
[SourceQuality "1"]
[TimeControl "40/6000+30:20/3000+30:900+30"]

1. e4 {[%emt 0:00:00]} e5 {[%emt 0:00:00]} 2. Nf3 {[%emt 0:00:00]} Nc6 {[%emt 0:00:00]} 3. Nc3 {[%emt 0:00:03]} Nf6 {[%emt 0:00:52]} 4. d4 {[%emt 0:00:38]} exd4 {[%emt 0:00:11]} 5. Nxd4 {[%emt 0:00:04]} Bb4 {[%emt 0:01:50]} 6. Nxc6 {[%emt 0:00:56]} bxc6 {[%emt 0:00:13]} 7. Bd3 {[%emt 0:00:27]} d5 {[%emt 0:01:32]} 8. exd5 {[%emt 0:02:13]} cxd5 {[%emt 0:00:19]} 9. O-O {[%emt 0:00:09]} O-O {[%emt 0:00:06]} 10. Bg5 {[%emt 0:00:24]} c6 {[%emt 0:00:18]} 11. Qf3 {[%emt 0:00:34]} Bd6 {[%emt 0:04:48]} 12. Rae1 {[%emt 0:01:36]} Rb8 {[%emt 0:03:44]} 13. Nd1 {[%emt 0:02:54]} h6 {[%emt 0:03:31]} 14. Bxf6 {[%emt 0:00:19]} Qxf6 {[%emt 0:00:07]} 15. Qxf6 {[%emt 0:00:11]} gxf6 {[%emt 0:00:07]} 16. b3 {[%emt 0:00:16]} f5 {[%emt 0:00:24]} 17. Ne3 {[%emt 0:00:43]} f4 {[%emt 0:00:10]} 18. Nf5 {[%emt 0:00:17]} Bxf5 {[%emt 0:00:09]} 19. Bxf5 {[%emt 0:00:02]} Rfe8 {[%emt 0:03:00]} 20. Bd7 {[%emt 0:05:01]} Rxe1 {[%emt 0:00:18]} 21. Rxe1 {[%emt 0:00:01]} c5 {[%emt 0:00:16]} 22. Re8+ {[%emt 0:01:13]} Rxe8 {[%emt 0:00:07]} 23. Bxe8 {[%emt 0:00:02]} Kf8 {[%emt 0:00:10]} 24. Bc6 {[%emt 0:00:19]} d4 {[%emt 0:00:05]} 25. Bd5 {[%emt 0:00:43]} Ke7 {[%emt 0:00:10]} 26. Kf1 {[%emt 0:00:29]} f6 {[%emt 0:00:09]} 27. Ke2 {[%emt 0:00:36]} Bc7 {[%emt 0:00:09]} 28. g3 {[%emt 0:01:29]} fxg3 {[%emt 0:00:12]} 29. hxg3 {[%emt 0:00:21]} Ba5 {[%emt 0:00:13]} 30. Be4 {[%emt 0:00:31]} Bc3 {[%emt 0:00:12]} 31. Bd3 {[%emt 0:00:39]} 1/2-1/2

[Event "FIDE Chesscom Grand Swiss 2019"]
[Site "Douglas-Isle of Man"]
[Date "2019.10.20"]
[Round "10.13"]
[White "Puranik, Abhimanyu"]
[Black "Papaioannou, Ioannis"]
[Result "1/2-1/2"]
[ECO "B23"]
[WhiteElo "2571"]
[BlackElo "2645"]
[Annotator "ChessBase"]
[PlyCount "62"]
[EventDate "2019.10.10"]
[EventType "swiss"]
[EventCountry "GBR"]
[SourceTitle "playchess.com"]
[Source "ChessBase"]
[SourceQuality "1"]
[TimeControl "40/6000+30:20/3000+30:900+30"]

1. e4 {[%emt 0:00:00]} c5 {[%emt 0:00:00]} 2. Nc3 {[%emt 0:00:00]} a6 {[%emt 0:00:00]} 3. g3 {[%emt 0:00:25]} b5 {[%emt 0:01:14]} 4. Bg2 {[%emt 0:00:22]} Bb7 {[%emt 0:00:10]} 5. Nge2 {[%emt 0:00:36]} e5 {[%emt 0:07:50]} 6. O-O {[%emt 0:03:44]} Nf6 {[%emt 0:00:16]} 7. d3 {[%emt 0:04:57]} Be7 {[%emt 0:00:50]} 8. f4 {[%emt 0:04:53]} d6 {[%emt 0:01:28]} 9. a4 {[%emt 0:09:33]} b4 {[%emt 0:01:59]} 10. Nd5 {[%emt 0:05:44]} Nxd5 {[%emt 0:01:23]} 11. exd5 {[%emt 0:00:06]} Nd7 {[%emt 0:00:21]} 12. c4 {[%emt 0:08:05]} Bf6 {[%emt 0:02:08]} 13. Ra2 {[%emt 0:09:18]} O-O {[%emt 0:01:28]} 14. b3 {[%emt 0:01:14]} Re8 {[%emt 0:01:49]} 15. Kh1 {[%emt 0:02:32]} Bc8 {[%emt 0:02:12]} 16. Be4 {[%emt 0:06:54]} Ra7 {[%emt 0:03:02]} 17. f5 {[%emt 0:05:59]} Bg5 {[%emt 0:01:16]} 18. Ng1 {[%emt 0:01:49]} Bxc1 {[%emt 0:07:30]} 19. Qxc1 {[%emt 0:00:16]} Nf6 {[%emt 0:03:44]} 20. Rg2 {[%emt 0:02:20]} h6 {[%emt 0:04:45]} 21. g4 {[%emt 0:03:09]} Kf8 {[%emt 0:00:34]} 22. Nf3 {[%emt 0:04:59]} Ke7 {[%emt 0:03:29]} 23. Rfg1 {[%emt 0:09:48]} Rg8 {[%emt 0:04:44]} 24. g5 {[%emt 0:07:35]} hxg5 {[%emt 0:00:24]} 25. Qxg5 {[%emt 0:00:07]} Kd7 {[%emt 0:10:17]} 26. Qh4 {[%emt 0:03:30]} Qf8 {[%emt 0:03:10]} 27. Ng5 {[%emt 0:02:18]} Rh8 {[%emt 0:02:03]} 28. Qf2 {[%emt 0:01:34]} Kd8 {[%emt 0:02:46]} 29. Nf3 {[%emt 0:00:20]} Rh7 {[%emt 0:01:01]} 30. Ng5 {[%emt 0:05:05]} Rh8 {[%emt 0:00:02]} 31. Nf3 Rh7 1/2-1/2

[Event "FIDE Chesscom Grand Swiss 2019"]
[Site "Douglas-Isle of Man"]
[Date "2019.10.20"]
[Round "10.14"]
[White "Harika, Dronavalli"]
[Black "Riazantsev, Alexander"]
[Result "1/2-1/2"]
[ECO "E11"]
[WhiteElo "2495"]
[BlackElo "2645"]
[Annotator "ChessBase"]
[PlyCount "86"]
[EventDate "2019.10.10"]
[EventType "swiss"]
[EventCountry "GBR"]
[SourceTitle "playchess.com"]
[Source "ChessBase"]
[SourceQuality "1"]
[TimeControl "40/6000+30:20/3000+30:900+30"]

1. Nf3 {[%emt 0:03:14]} d5 {[%emt 0:00:00]} 2. d4 {[%emt 0:00:09]} Nf6 {[%emt 0:00:10]} 3. c4 {[%emt 0:00:06]} e6 {[%emt 0:00:21]} 4. g3 {[%emt 0:00:18]} Bb4+ {[%emt 0:00:32]} 5. Bd2 {[%emt 0:00:56]} a5 {[%emt 0:00:50]} 6. Bg2 {[%emt 0:00:16]} O-O {[%emt 0:00:14]} 7. Qc2 {[%emt 0:04:54]} c5 {[%emt 0:01:21]} 8. O-O {[%emt 0:07:11]} cxd4 {[%emt 0:06:22]} 9. Nxd4 {[%emt 0:03:29]} e5 {[%emt 0:15:34]} 10. Nb5 {[%emt 0:03:07]} d4 {[%emt 0:06:20]} 11. Bxb4 {[%emt 0:22:36]} axb4 {[%emt 0:00:04]} 12. Nd2 {[%emt 0:00:05]} Na6 {[%emt 0:10:03]} 13. a3 {[%emt 0:06:32]} Qe7 {[%emt 0:03:59]} 14. h3 {[%emt 0:11:48]} g6 {[%emt 0:23:08]} 15. axb4 {[%emt 0:00:54]} Nxb4 {[%emt 0:05:04]} 16. Qb3 {[%emt 0:00:27]} Bf5 {[%emt 0:00:19]} 17. Rxa8 {[%emt 0:00:38]} Rxa8 {[%emt 0:00:05]} 18. e4 {[%emt 0:09:19]} Bd7 {[%emt 0:17:57]} 19. f4 {[%emt 0:02:21]} Na6 {[%emt 0:07:37]} 20. Qa3 {[%emt 0:01:06]} Qxa3 {[%emt 0:00:50]} 21. Nxa3 {[%emt 0:01:55]} Nh5 {[%emt 0:00:48]} 22. Kh2 {[%emt 0:01:16]} f6 {[%emt 0:01:48]} 23. Nc2 {[%emt 0:01:15]} Re8 {[%emt 0:02:16]} 24. fxe5 {[%emt 0:01:02]} fxe5 {[%emt 0:00:01]} 25. Ra1 {[%emt 0:05:10]} Bc6 {[%emt 0:00:01]} 26. Ne1 {[%emt 0:06:14]} Nb4 {[%emt 0:00:25]} 27. Ra3 {[%emt 0:00:07]} Rf8 {[%emt 0:03:13]} 28. Bf3 {[%emt 0:01:12]} Nf6 {[%emt 0:00:10]} 29. Rb3 {[%emt 0:01:33]} Na6 {[%emt 0:00:00]} 30. Nd3 {[%emt 0:00:09]} Nd7 {[%emt 0:00:01]} 31. Ra3 {[%emt 0:00:22]} Nac5 {[%emt 0:00:44]} 32. Nxc5 {[%emt 0:02:26]} Nxc5 {[%emt 0:00:01]} 33. b4 {[%emt 0:00:14]} Ne6 {[%emt 0:00:00]} 34. h4 {[%emt 0:00:26]} Kf7 {[%emt 0:02:04]} 35. Ra7 {[%emt 0:01:28]} Ke7 {[%emt 0:02:14]} 36. Kg1 {[%emt 0:01:37]} Kd6 {[%emt 0:02:02]} 37. Bg4 {[%emt 0:01:58]} Nd8 {[%emt 0:00:18]} 38. Be2 {[%emt 0:00:42]} Kc7 {[%emt 0:00:24]} 39. c5 {[%emt 0:02:40]} Bd7 {[%emt 0:00:21]} 40. Ra8 {[%emt 0:01:17]} Ne6 {[%emt 0:01:41]} 41. Rxf8 {[%emt 0:53:55]} Nxf8 {[%emt 0:00:49]} 42. Nf3 {[%emt 0:00:00]} Bc6 {[%emt 0:03:19]} 43. Nxe5 {[%emt 0:00:00]} Bxe4 {[%emt 0:00:14]} 1/2-1/2

[Event "FIDE Chesscom Grand Swiss 2019"]
[Site "Douglas-Isle of Man"]
[Date "2019.10.20"]
[Round "10.15"]
[White "Baron, Tal"]
[Black "Bluebaum, Matthias"]
[Result "1/2-1/2"]
[ECO "B12"]
[WhiteElo "2531"]
[BlackElo "2643"]
[Annotator "ChessBase"]
[PlyCount "62"]
[EventDate "2019.10.10"]
[EventType "swiss"]
[EventCountry "GBR"]
[SourceTitle "playchess.com"]
[Source "ChessBase"]
[SourceQuality "1"]
[TimeControl "40/6000+30:20/3000+30:900+30"]

1. e4 {[%emt 0:00:00]} c6 {[%emt 0:00:00]} 2. d4 {[%emt 0:00:00]} d5 {[%emt 0:00:00]} 3. e5 {[%emt 0:00:00]} Bf5 {[%emt 0:00:00]} 4. h4 {[%emt 0:00:12]} h5 {[%emt 0:00:04]} 5. Bd3 {[%emt 0:00:00]} Bxd3 {[%emt 0:00:05]} 6. Qxd3 {[%emt 0:00:00]} Qa5+ {[%emt 0:00:04]} 7. Nd2 {[%emt 0:00:21]} e6 {[%emt 0:00:38]} 8. Ngf3 {[%emt 0:00:04]} Nh6 {[%emt 0:02:58]} 9. O-O {[%emt 0:00:03]} Qa6 {[%emt 0:02:28]} 10. c4 {[%emt 0:00:53]} Nf5 {[%emt 0:01:23]} 11. b3 {[%emt 0:02:24]} Be7 {[%emt 0:03:13]} 12. a4 {[%emt 0:20:11]} O-O {[%emt 0:12:31]} 13. Ba3 {[%emt 0:02:30]} Bxa3 {[%emt 0:00:25]} 14. Rxa3 {[%emt 0:00:03]} Qa5 {[%emt 0:00:16]} 15. Rc1 {[%emt 0:16:12]} Na6 {[%emt 0:24:15]} 16. Nf1 {[%emt 0:03:47]} Qb4 {[%emt 0:18:34]} 17. Raa1 {[%emt 0:00:36]} Qe7 {[%emt 0:00:04]} 18. Ng3 {[%emt 0:03:56]} Nxh4 {[%emt 0:03:41]} 19. Nxh5 {[%emt 0:00:24]} Nb4 {[%emt 0:02:11]} 20. Qc3 {[%emt 0:03:06]} Nxf3+ {[%emt 0:07:50]} 21. Qxf3 {[%emt 0:00:03]} Qh4 {[%emt 0:00:10]} 22. Nf4 {[%emt 0:10:51]} g6 {[%emt 0:04:59]} 23. g3 {[%emt 0:04:32]} Qg5 {[%emt 0:00:08]} 24. a5 {[%emt 0:03:47]} Rad8 {[%emt 0:06:00]} 25. Qc3 {[%emt 0:02:33]} Qe7 {[%emt 0:01:21]} 26. c5 {[%emt 0:15:50]} Na6 {[%emt 0:00:20]} 27. Qf3 {[%emt 0:01:29]} Qg5 {[%emt 0:01:15]} 28. Kg2 {[%emt 0:03:10]} Kg7 {[%emt 0:00:21]} 29. Qe3 {[%emt 0:00:19]} Qe7 {[%emt 0:03:03]} 30. Qf3 {[%emt 0:00:03]} Qg5 {[%emt 0:00:11]} 31. Qe3 {[%emt 0:00:03]} Qe7 {[%emt 0:00:04]} 1/2-1/2

[Event "FIDE Chesscom Grand Swiss 2019"]
[Site "Douglas-Isle of Man"]
[Date "2019.10.20"]
[Round "10.17"]
[White "Kashlinskaya, Alina"]
[Black "Alekseev, Evgeny"]
[Result "1/2-1/2"]
[ECO "D36"]
[WhiteElo "2481"]
[BlackElo "2629"]
[Annotator "ChessBase"]
[PlyCount "85"]
[EventDate "2019.10.10"]
[EventType "swiss"]
[EventCountry "GBR"]
[SourceTitle "playchess.com"]
[Source "ChessBase"]
[SourceQuality "1"]
[TimeControl "40/6000+30:20/3000+30:900+30"]

1. d4 {[%emt 0:00:00]} d5 {[%emt 0:04:07]} 2. c4 {[%emt 0:00:00]} e6 {[%emt 0:00:16]} 3. Nc3 {[%emt 0:00:00]} Nf6 {[%emt 0:00:37]} 4. cxd5 {[%emt 0:00:00]} exd5 {[%emt 0:00:41]} 5. Bg5 {[%emt 0:00:08]} c6 {[%emt 0:01:54]} 6. e3 {[%emt 0:00:14]} Bd6 {[%emt 0:01:20]} 7. Bd3 {[%emt 0:01:07]} Nbd7 {[%emt 0:02:24]} 8. Qc2 {[%emt 0:04:14]} Nf8 {[%emt 0:06:58]} 9. O-O-O {[%emt 0:12:13]} Ng6 {[%emt 0:11:50]} 10. f4 {[%emt 0:04:17]} h6 {[%emt 0:04:58]} 11. Bxf6 {[%emt 0:00:25]} Qxf6 {[%emt 0:00:19]} 12. f5 {[%emt 0:08:09]} Ne7 {[%emt 0:10:48]} 13. e4 {[%emt 0:07:44]} Qxd4 {[%emt 0:01:41]} 14. Nf3 {[%emt 0:00:41]} Qc5 {[%emt 0:03:59]} 15. exd5 {[%emt 0:20:15]} cxd5 {[%emt 0:04:05]} 16. Bb5+ {[%emt 0:05:29]} Kf8 {[%emt 0:03:02]} 17. g4 {[%emt 0:03:33]} a6 {[%emt 0:05:48]} 18. Be2 {[%emt 0:11:32]} h5 {[%emt 0:03:37]} 19. h3 {[%emt 0:01:41]} b5 {[%emt 0:03:39]} 20. a3 {[%emt 0:02:36]} Bb7 {[%emt 0:11:11]} 21. Rhf1 {[%emt 0:00:06]} hxg4 {[%emt 0:03:34]} 22. hxg4 {[%emt 0:00:02]} Re8 {[%emt 0:04:44]} 23. Kb1 {[%emt 0:00:47]} Bf4 {[%emt 0:06:44]} 24. g5 {[%emt 0:02:07]} d4 {[%emt 0:01:28]} 25. Rxd4 {[%emt 0:12:41]} Bxg5 {[%emt 0:01:42]} 26. Rd7 {[%emt 0:00:03]} Bc8 {[%emt 0:05:44]} 27. Nxg5 {[%emt 0:00:04]} Bxd7 {[%emt 0:00:05]} 28. Qb3 {[%emt 0:00:09]} Nd5 {[%emt 0:00:25]} 29. Nce4 {[%emt 0:01:02]} Bxf5 {[%emt 0:03:23]} 30. Bd3 {[%emt 0:01:26]} Bxe4 {[%emt 0:01:21]} 31. Bxe4 {[%emt 0:02:24]} Rxe4 {[%emt 0:02:17]} 32. Nxe4 {[%emt 0:01:32]} Qc6 {[%emt 0:00:02]} 33. Ka1 {[%emt 0:03:58]} Rh5 {[%emt 0:00:43]} 34. Qf3 {[%emt 0:02:07]} Qg6 {[%emt 0:00:18]} 35. Nd6 {[%emt 0:00:33]} f6 {[%emt 0:01:12]} 36. Rd1 {[%emt 0:00:30]} Qg5 {[%emt 0:00:32]} 37. Re1 {[%emt 0:01:25]} Kg8 {[%emt 0:00:30]} 38. Re8+ {[%emt 0:00:34]} Kh7 {[%emt 0:00:02]} 39. Qe4+ {[%emt 0:00:23]} g6 {[%emt 0:00:41]} 40. Re7+ {[%emt 0:03:08]} Nxe7 {[%emt 0:00:03]} 41. Qxe7+ {[%emt 0:50:03]} Kg8 {[%emt 0:50:04]} 42. Qf7+ {[%emt 0:00:00]} Kh8 {[%emt 0:00:00]} 43. Qf8+ {[%emt 0:00:00]} 1/2-1/2

[Event "FIDE Chesscom Grand Swiss 2019"]
[Site "Douglas-Isle of Man"]
[Date "2019.10.20"]
[Round "10.21"]
[White "Motylev, Alexander"]
[Black "Henderson de La Fuente, Lance"]
[Result "1-0"]
[ECO "C67"]
[WhiteElo "2651"]
[BlackElo "2494"]
[Annotator "ChessBase"]
[PlyCount "133"]
[EventDate "2019.10.10"]
[EventType "swiss"]
[EventCountry "GBR"]
[SourceTitle "playchess.com"]
[Source "ChessBase"]
[SourceQuality "1"]
[TimeControl "40/6000+30:20/3000+30:900+30"]

1. e4 {[%emt 0:01:42]} e5 {[%emt 0:00:00]} 2. Nf3 {[%emt 0:00:06]} Nc6 {[%emt 0:00:00]} 3. Bb5 {[%emt 0:00:47]} Nf6 {[%emt 0:00:21]} 4. O-O {[%emt 0:00:43]} Nxe4 {[%emt 0:00:21]} 5. Re1 {[%emt 0:00:09]} Nd6 {[%emt 0:00:21]} 6. Nxe5 {[%emt 0:00:06]} Be7 {[%emt 0:00:09]} 7. Bf1 {[%emt 0:00:12]} Nxe5 {[%emt 0:00:22]} 8. Rxe5 {[%emt 0:00:06]} O-O {[%emt 0:00:19]} 9. d4 {[%emt 0:00:04]} Bf6 {[%emt 0:00:18]} 10. Re1 {[%emt 0:00:06]} Nf5 {[%emt 0:01:04]} 11. d5 {[%emt 0:00:43]} Re8 {[%emt 0:02:05]} 12. Nd2 {[%emt 0:04:38]} Rxe1 {[%emt 0:02:17]} 13. Qxe1 {[%emt 0:00:05]} d6 {[%emt 0:07:40]} 14. Ne4 {[%emt 0:01:27]} Bd4 {[%emt 0:00:30]} 15. c3 {[%emt 0:04:20]} Bb6 {[%emt 0:02:08]} 16. a4 {[%emt 0:00:32]} a6 {[%emt 0:01:36]} 17. a5 {[%emt 0:23:46]} Ba7 {[%emt 0:00:16]} 18. Bg5 {[%emt 0:03:05]} f6 {[%emt 0:07:52]} 19. Bf4 {[%emt 0:07:01]} Bd7 {[%emt 0:01:36]} 20. Qd1 {[%emt 0:01:16]} Qe7 {[%emt 0:04:55]} 21. Bd3 {[%emt 0:01:24]} Re8 {[%emt 0:07:04]} 22. h3 {[%emt 0:11:05]} Qf7 {[%emt 0:05:53]} 23. Bc2 {[%emt 0:03:34]} Nh4 {[%emt 0:06:11]} 24. Bg3 {[%emt 0:04:21]} Ng6 {[%emt 0:02:54]} 25. Qh5 {[%emt 0:03:52]} Ne5 {[%emt 0:01:54]} 26. Qxf7+ {[%emt 0:02:52]} Nxf7 {[%emt 0:02:22]} 27. Nd2 {[%emt 0:07:37]} g5 {[%emt 0:10:38]} 28. Kf1 {[%emt 0:02:56]} Nh6 {[%emt 0:03:47]} 29. Ba4 {[%emt 0:01:47]} Bxa4 {[%emt 0:05:37]} 30. Rxa4 {[%emt 0:00:18]} Nf5 {[%emt 0:00:17]} 31. Rb4 {[%emt 0:00:44]} Rb8 {[%emt 0:01:07]} 32. Rc4 {[%emt 0:08:55]} c6 {[%emt 0:16:34]} 33. Bh2 {[%emt 0:03:06]} cxd5 {[%emt 0:09:27]} 34. Rc7 {[%emt 0:02:50]} h5 {[%emt 0:00:40]} 35. Rd7 {[%emt 0:01:14]} Bc5 {[%emt 0:05:48]} 36. b4 {[%emt 0:01:31]} Ba7 {[%emt 0:00:13]} 37. g4 {[%emt 0:00:43]} hxg4 {[%emt 0:00:49]} 38. hxg4 {[%emt 0:00:04]} Nh6 {[%emt 0:01:41]} 39. Bxd6 {[%emt 0:00:24]} Ra8 {[%emt 0:00:19]} 40. f3 {[%emt 0:03:17]} Nf7 {[%emt 0:00:48]} 41. Bg3 {[%emt 0:53:39]} Rc8 {[%emt 0:51:26]} 42. Rxb7 {[%emt 0:01:03]} Be3 {[%emt 0:00:11]} 43. b5 {[%emt 0:00:00]} axb5 {[%emt 0:00:00]} 44. a6 {[%emt 0:00:00]} Kg7 {[%emt 0:00:00]} 45. Ke2 {[%emt 0:00:00]} Rxc3 {[%emt 0:00:00]} 46. a7 {[%emt 0:00:00]} Ra3 {[%emt 0:00:00]} 47. a8=Q {[%emt 0:00:00]} Rxa8 {[%emt 0:00:00]} 48. Kxe3 {[%emt 0:00:00]} Ra3+ {[%emt 0:00:00]} 49. Ke2 {[%emt 0:00:00]} f5 {[%emt 0:00:00]} 50. gxf5 {[%emt 0:00:00]} Kf6 {[%emt 0:00:00]} 51. Rxb5 {[%emt 0:00:00]} Kxf5 {[%emt 0:00:00]} 52. Rxd5+ {[%emt 0:00:00]} Ke6 {[%emt 0:00:00]} 53. Rd4 {[%emt 0:00:00]} Kf5 {[%emt 0:00:00]} 54. Nc4 {[%emt 0:00:00]} Rb3 {[%emt 0:00:00]} 55. Ne3+ {[%emt 0:00:00]} Kf6 {[%emt 0:00:00]} 56. Ng4+ {[%emt 0:00:00]} Kg6 {[%emt 0:00:00]} 57. Ra4 {[%emt 0:00:00]} Rb6 {[%emt 0:00:00]} 58. Kf1 {[%emt 0:00:00]} Re6 {[%emt 0:00:00]} 59. Kg2 {[%emt 0:00:42]} Re2+ {[%emt 0:00:00]} 60. Kh3 {[%emt 0:00:00]} Re6 {[%emt 0:00:00]} 61. Ra5 {[%emt 0:14:41]} Rc6 {[%emt 0:00:56]} 62. Bf2 {[%emt 0:00:15]} Re6 {[%emt 0:00:26]} 63. Be3 {[%emt 0:00:28]} Rd6 {[%emt 0:01:31]} 64. Kg3 {[%emt 0:00:21]} Re6 {[%emt 0:00:01]} 65. Rc5 {[%emt 0:01:30]} Re7 {[%emt 0:04:15]} 66. Rc6+ {[%emt 0:00:42]} Kh5 {[%emt 0:00:02]} 67. Nf6+ {[%emt 0:00:25]} 1-0

[Event "FIDE Chesscom Grand Swiss 2019"]
[Site "Douglas-Isle of Man"]
[Date "2019.10.20"]
[Round "10.22"]
[White "Saduakassova, Dinara"]
[Black "Zvjaginsev, Vadim"]
[Result "1/2-1/2"]
[ECO "A40"]
[WhiteElo "2481"]
[BlackElo "2644"]
[Annotator "ChessBase"]
[PlyCount "132"]
[EventDate "2019.10.10"]
[EventType "swiss"]
[EventCountry "GBR"]
[SourceTitle "playchess.com"]
[Source "ChessBase"]
[SourceQuality "1"]
[TimeControl "40/6000+30:20/3000+30:900+30"]

1. d4 {[%emt 0:00:00]} e6 {[%emt 0:00:00]} 2. c4 {[%emt 0:00:00]} Bb4+ {[%emt 0:00:08]} 3. Bd2 {[%emt 0:00:03]} a5 {[%emt 0:00:07]} 4. g3 {[%emt 0:04:31]} d6 {[%emt 0:01:03]} 5. Nf3 {[%emt 0:01:08]} Nc6 {[%emt 0:00:35]} 6. Nc3 {[%emt 0:09:01]} e5 {[%emt 0:01:18]} 7. a3 {[%emt 0:04:30]} Bxc3 {[%emt 0:00:43]} 8. Bxc3 {[%emt 0:00:15]} Qe7 {[%emt 0:00:35]} 9. d5 {[%emt 0:06:49]} Nb8 {[%emt 0:00:35]} 10. b4 {[%emt 0:01:25]} Nf6 {[%emt 0:09:45]} 11. Bg2 {[%emt 0:06:57]} axb4 {[%emt 0:09:17]} 12. axb4 {[%emt 0:00:05]} Rxa1 {[%emt 0:00:04]} 13. Qxa1 {[%emt 0:04:32]} O-O {[%emt 0:03:22]} 14. O-O {[%emt 0:00:35]} b5 {[%emt 0:11:25]} 15. Nd2 {[%emt 0:01:55]} bxc4 {[%emt 0:04:10]} 16. Nxc4 {[%emt 0:04:16]} Ba6 {[%emt 0:03:59]} 17. Qa2 {[%emt 0:01:21]} c6 {[%emt 0:09:37]} 18. Ne3 {[%emt 0:04:17]} cxd5 {[%emt 0:01:08]} 19. Nxd5 {[%emt 0:00:59]} Nxd5 {[%emt 0:00:11]} 20. Bxd5 {[%emt 0:02:43]} Bb5 {[%emt 0:00:32]} 21. Rc1 {[%emt 0:06:46]} Nc6 {[%emt 0:08:50]} 22. Qd2 {[%emt 0:09:51]} Rd8 {[%emt 0:05:11]} 23. Bb2 {[%emt 0:06:33]} Qd7 {[%emt 0:04:41]} 24. Bb3 {[%emt 0:08:10]} h6 {[%emt 0:01:24]} 25. Bd5 {[%emt 0:02:44]} Ne7 {[%emt 0:02:05]} 26. Bg2 {[%emt 0:00:50]} f6 {[%emt 0:04:13]} 27. f4 {[%emt 0:06:23]} Qa7+ {[%emt 0:01:04]} 28. Kh1 {[%emt 0:01:11]} Qb6 {[%emt 0:01:00]} 29. Bf3 {[%emt 0:02:53]} Kh8 {[%emt 0:05:51]} 30. Qc3 {[%emt 0:04:30]} Rc8 {[%emt 0:01:27]} 31. Qd2 {[%emt 0:01:43]} Rxc1+ {[%emt 0:01:41]} 32. Qxc1 {[%emt 0:00:32]} Bc6 {[%emt 0:00:46]} 33. fxe5 {[%emt 0:01:43]} fxe5 {[%emt 0:03:27]} 34. Qe1 {[%emt 0:04:43]} Nd5 {[%emt 0:05:33]} 35. Ba3 {[%emt 0:02:05]} Ne3 {[%emt 0:01:48]} 36. Qg1 {[%emt 0:00:40]} Bxf3+ {[%emt 0:04:46]} 37. exf3 {[%emt 0:00:04]} Qb5 {[%emt 0:01:21]} 38. Qxe3 {[%emt 0:01:20]} Qf1+ {[%emt 0:00:06]} 39. Qg1 {[%emt 0:00:01]} Qxf3+ {[%emt 0:00:10]} 40. Qg2 {[%emt 0:00:01]} Qxa3 {[%emt 0:01:03]} 41. Qe4 {[%emt 0:51:07]} Qa2 {[%emt 0:06:21]} 42. Kg1 {[%emt 0:00:00]} Kg8 {[%emt 0:04:46]} 43. b5 {[%emt 0:00:00]} Qa1+ {[%emt 0:01:21]} 44. Kf2 {[%emt 0:00:00]} Qb2+ {[%emt 0:00:15]} 45. Qe2 {[%emt 0:00:00]} Qb3 {[%emt 0:02:11]} 46. Qg4 {[%emt 0:00:00]} Qc2+ {[%emt 0:03:23]} 47. Kg1 {[%emt 0:00:00]} Qc5+ {[%emt 0:04:06]} 48. Kg2 {[%emt 0:00:00]} Qd5+ {[%emt 0:03:37]} 49. Kh3 {[%emt 0:00:00]} Qxb5 {[%emt 0:02:27]} 50. Qe6+ {[%emt 0:00:00]} Kf8 {[%emt 0:00:12]} 51. Qxd6+ {[%emt 0:00:00]} Kf7 {[%emt 0:00:06]} 52. Kg4 {[%emt 0:00:00]} g6 {[%emt 0:07:38]} 53. Kf3 {[%emt 0:00:00]} Qb7+ {[%emt 0:02:55]} 54. Ke3 {[%emt 0:00:00]} Qe7 {[%emt 0:00:14]} 55. Qd5+ {[%emt 0:00:00]} Kf6 {[%emt 0:01:16]} 56. Qf3+ {[%emt 0:00:00]} Kg7 {[%emt 0:01:30]} 57. Qc6 {[%emt 0:00:00]} Qg5+ {[%emt 0:08:58]} 58. Ke4 {[%emt 0:00:00]} Qf5+ {[%emt 0:00:25]} 59. Ke3 {[%emt 0:00:00]} Qg5+ {[%emt 0:00:09]} 60. Ke4 {[%emt 0:00:00]} Qf5+ {[%emt 0:00:10]} 61. Ke3 {[%emt 0:04:41]} h5 {[%emt 0:18:10]} 62. Qd6 {[%emt 0:07:36]} Kh6 {[%emt 0:04:32]} 63. h4 {[%emt 0:00:36]} Kg7 {[%emt 0:01:40]} 64. Qe7+ {[%emt 0:00:07]} Kh6 {[%emt 0:00:16]} 65. Qd6 {[%emt 0:00:04]} Kg7 {[%emt 0:00:04]} 66. Qe7+ {[%emt 0:00:04] e4 Kxe4+} Kh6 {[%emt 0:01:16] Ke4 Kg7+} 1/2-1/2